fUSD/lending_fUSD_20240119
["ID","MTS","AMOUNT","RATE_DAILY","PERIOD"]
[312196305,1705684285567,-518.0,0.00023013,2]
[312196306,1705684285577,-500.0,0.00023013,2]
[312196307,1705684285587,-500.0,0.00023013,2]
[312196308,1705684285598,-608.29953454,0.00023013,2]
[312196309,1705684285608,-500.0,0.00023013,2]
[312196310,1705684285619,-500.0,0.00023013,2]
[312196311,1705684285631,-634.3,0.00023013,2]
[312196312,1705684285642,-500.0,0.00023013,2]
[312196313,1705684285654,-500.0,0.00023013,2]
[312196314,1705684285665,-500.0,0.00023013,2]
[312196315,1705684285676,-500.0,0.00023013,2]
[312196316,1705684285688,-500.0,0.00023013,2]
[312196317,1705684285699,-821.92,0.00023013,2]
[312196318,1705684285711,-500.0,0.00023013,2]
[312196319,1705684285722,-500.0,0.00023013,2]
[312196320,1705684285733,-500.0,0.00023013,2]
[312196321,1705684285745,-500.0,0.00023013,2]
[312196322,1705684285762,-673.61,0.00023013,2]
[312196323,1705684285776,-500.0,0.00023013,2]
[312196324,1705684285788,-500.0,0.00023013,2]
[312196325,1705684285800,-500.0,0.00023013,2]
[312196326,1705684285813,-522.51,0.00023013,2]
[312196327,1705684285825,-799.17,0.00023013,2]
[312196328,1705684285836,-500.0,0.00023013,2]
[312196329,1705684285848,-543.84,0.00023013,2]
[312196330,1705684285860,-862.29,0.00023013,2]
[312196331,1705684285872,-500.0,0.00023013,2]
[312196332,1705684285884,-539.84,0.00023013,2]
[312196333,1705684285895,-500.0,0.00023013,2]
[312196334,1705684285906,-500.0,0.00023013,2]
[312196335,1705684285917,-500.0,0.00023013,2]
[312196336,1705684285929,-500.0,0.00023013,2]
[312196337,1705684285940,-500.0,0.00023013,2]
[312196338,1705684285951,-500.0,0.00023013,2]
[312196339,1705684285964,-903.19,0.00023013,2]
[312196340,1705684285975,-720.59,0.00023013,2]
[312196341,1705684285986,-500.0,0.00023013,2]
[312196342,1705684285997,-216.57614455,0.00023013,2]
[312196343,1705684286016,-500.0,0.00023013,2]
[312196344,1705684286028,-500.0,0.00023013,2]
[312196345,1705684286042,-500.0,0.00023013,2]
[312196346,1705684286052,-500.0,0.00023013,2]
[312196347,1705684286064,-790.36,0.00023013,2]
[312196348,1705684286077,-500.0,0.00023013,2]
[312196349,1705684286088,-447.16,0.00023013,2]
[312196350,1705684286099,-500.0,0.00023013,2]
[312196351,1705684286109,-369.04850274,0.00023013,2]
[312196352,1705684286120,-934.67,0.00023013,2]
[312196353,1705684286131,-500.0,0.00023013,2]
[312196354,1705684286140,-573.80147418,0.00023013,2]
[312196355,1705684286150,-1004.82,0.00023013,2]
[312196356,1705684286161,-500.0,0.00023013,2]
[312196357,1705684286172,-718.68,0.00023013,2]
[312196358,1705684286182,-2888.65,0.00023013,2]
[312196359,1705684286193,-500.0,0.00023013,2]
[312196360,1705684286202,-155.44,0.00023013,2]
[312196361,1705684286212,-751.55,0.00023013,2]
[312196362,1705684286222,-767.72,0.00023013,2]
[312196363,1705684286232,-500.0,0.00023013,2]
[312196364,1705684286241,-500.0,0.00023013,2]
[312196365,1705684286250,-1564.8,0.00023013,2]
[312196366,1705684286267,-500.0,0.00023013,2]
[312196367,1705684286277,-2087.23,0.00023013,2]
[312196368,1705684286287,-553.54,0.00023013,2]
[312196369,1705684286297,-635.0,0.00023013,2]
[312196370,1705684286308,-801.0,0.00023013,2]
[312196371,1705684286317,-779.44,0.00023013,2]
[312196372,1705684286327,-692.16,0.00023013,2]
[312196373,1705684286337,-500.0,0.00023013,2]
[312196374,1705684286347,-776.21,0.00023013,2]
[312196375,1705684286357,-2489.47,0.00023013,2]
[312196376,1705684286368,-1305.59,0.00023013,2]
[312196377,1705684286378,-500.0,0.00023013,2]
[312196378,1705684286391,-540.08,0.00023013,2]
[312196379,1705684286401,-500.0,0.00023013,2]
[312196380,1705684286410,-657.66,0.00023013,2]
[312196381,1705684286421,-500.0,0.00023013,2]
[312196382,1705684286430,-3922.54,0.00023013,2]
[312196383,1705684286440,-500.0,0.00023013,2]
[312196384,1705684286451,-500.0,0.00023013,2]
[312196385,1705684286460,-500.0,0.00023013,2]
[312196386,1705684286470,-500.0,0.00023013,2]
[312196387,1705684286481,-500.0,0.00023013,2]
[312196388,1705684286490,-500.0,0.00023013,2]
[312196389,1705684286499,-500.0,0.00023013,2]
[312196390,1705684286515,-500.0,0.00023013,2]
[312196391,1705684286525,-500.0,0.00023013,2]
[312196392,1705684286535,-500.0,0.00023013,2]
[312196393,1705684286544,-245.8,0.00023013,2]
[312196394,1705684286554,-500.0,0.00023013,2]
[312196395,1705684286564,-1067.45,0.00023013,5]
[312196396,1705684286574,-574.27,0.00023013,2]
[312196397,1705684286584,-2955.88,0.00023013,2]
[312196398,1705684286593,-466.75446405,0.00023013,2]
[312196399,1705684286603,-500.0,0.00023013,2]
[312196400,1705684286614,-2247.96,0.00023013,2]
[312196401,1705684286624,-4625.17,0.00023013,2]
[312196402,1705684286634,-412.44,0.00023013,2]
[312196403,1705684286645,-500.0,0.00023013,2]
[312196404,1705684286656,-500.0,0.00023013,2]
[312196405,1705684286666,-500.0,0.00023013,2]
[312196406,1705684286676,-500.0,0.00023013,2]
[312196407,1705684286687,-500.0,0.00023013,2]
[312196408,1705684286697,-500.0,0.00023013,2]
[312196409,1705684286707,-792.41,0.00023013,2]
[312196410,1705684286718,-500.0,0.00023013,2]
[312196411,1705684286728,-3375.04,0.00023013,2]
[312196412,1705684286738,-1145.18,0.00023013,2]
[312196413,1705684286748,-1482.95,0.00023013,2]
[312196414,1705684286765,-500.0,0.00023013,2]
[312196415,1705684286776,-3968.6,0.00023013,2]
[312196416,1705684286787,-642.03,0.00023013,2]
[312196417,1705684286797,-759.02,0.00023013,2]
[312196418,1705684286808,-500.0,0.00023013,2]
[312196419,1705684286818,-519.9,0.00023013,2]
[312196420,1705684286829,-1025.72,0.00023013,2]
[312196421,1705684286839,-2480.63,0.00023013,2]
[312196422,1705684286850,-733.85,0.00023013,2]
[312196423,1705684286861,-3098.92,0.00023013,2]
[312196424,1705684286871,-500.0,0.00023013,2]
[312196425,1705684286883,-542.0,0.00023013,2]
[312196426,1705684286894,-500.0,0.00023013,2]
[312196427,1705684286905,-6021.86,0.00023013,2]
[312196428,1705684286916,-753.94,0.00023013,2]
[312196429,1705684286927,-500.0,0.00023013,2]
[312196430,1705684286937,-500.0,0.00023013,2]
[312196431,1705684286947,-978.79,0.00023013,2]
[312196432,1705684286957,-500.0,0.00023013,2]
[312196433,1705684286968,-682.8,0.00023013,2]
[312196434,1705684286979,-4921.79,0.00023013,2]
[312196435,1705684286990,-500.0,0.00023013,2]
[312196436,1705684287002,-480.76,0.00023013,2]
[312196437,1705684287021,-214.0,0.00023013,2]
[312196438,1705684287032,-8646.25,0.00023013,2]
[312196439,1705684287047,-500.0,0.00023013,2]
[312196440,1705684287058,-1163.38,0.00023013,2]
[312196441,1705684287069,-500.0,0.00023013,2]
[312196442,1705684287083,-500.0,0.00023013,2]
[312196443,1705684287094,-500.0,0.00023013,2]
[312196444,1705684287104,-500.0,0.00023013,2]
[312196446,1705684287115,-500.0,0.00023013,2]
[312196447,1705684287129,-500.0,0.00023013,2]
[312196448,1705684287140,-500.0,0.00023013,2]
[312196449,1705684287154,-2479.77,0.00023013,2]
[312196450,1705684287165,-500.0,0.00023013,2]
[312196451,1705684287176,-500.0,0.00023013,2]
[312196452,1705684287190,-500.0,0.00023013,2]
[312196453,1705684287200,-805.35,0.00023013,2]
[312196454,1705684287210,-1096.89,0.00023013,2]
[312196455,1705684287221,-500.0,0.00023013,2]
[312196456,1705684287232,-500.0,0.00023013,2]
[312196457,1705684287242,-500.0,0.00023013,2]
[312196458,1705684287252,-846.06,0.00023013,2]
[312196459,1705684287270,-522.24,0.00023013,2]
[312196460,1705684287281,-1247.86,0.00023013,2]
[312196461,1705684287292,-1521.64,0.00023013,2]
[312196462,1705684287301,-500.0,0.00023013,2]
[312196463,1705684287311,-810.2,0.00023013,2]
[312196464,1705684287321,-1270.75,0.00023013,2]
[312196465,1705684287331,-500.0,0.00023013,2]
[312196466,1705684287341,-500.0,0.00023013,2]
[312196467,1705684287351,-648.61,0.00023013,2]
[312196468,1705684287361,-591.96,0.00023013,2]
[312196469,1705684287371,-500.0,0.00023013,2]
[312196470,1705684287381,-1158.73,0.00023013,2]
[312196471,1705684287392,-1375.2,0.00023013,2]
[312196472,1705684287402,-500.0,0.00023013,2]
[312196473,1705684287412,-17751.82,0.00023013,2]
[312196474,1705684287422,-500.0,0.00023013,2]
[312196475,1705684287433,-500.0,0.00023013,2]
[312196476,1705684287443,-503.19,0.00023013,2]
[312196477,1705684287454,-1097.0,0.00023013,2]
[312196478,1705684287464,-1798.17,0.00023013,2]
[312196479,1705684287474,-484.44835973,0.00023013,2]
[312196480,1705684287484,-1690.88,0.00023013,2]
[312196481,1705684287495,-918.43,0.00023013,2]
[312196482,1705684287509,-500.0,0.00023013,2]
[312196483,1705684287521,-1931.87,0.00023013,2]
[312196484,1705684287531,-662.05,0.00023013,2]
[312196485,1705684287542,-820.42,0.00023013,2]
[312196486,1705684287552,-500.0,0.00023013,2]
[312196487,1705684287562,-1315.74,0.00023013,2]
[312196488,1705684287572,-2334.22,0.00023013,2]
[312196489,1705684287582,-500.0,0.00023013,2]
[312196490,1705684287594,-500.0,0.00023013,2]
[312196491,1705684287605,-490.92,0.00023013,2]
[312196492,1705684287615,-2683.86,0.00023013,2]
[312196493,1705684287626,-500.0,0.00023013,2]
[312196494,1705684287636,-759.51,0.00023013,2]
[312196495,1705684287646,-1614.07,0.00023013,2]
[312196496,1705684287656,-4770.94,0.00023013,2]
[312196497,1705684287667,-500.0,0.00023013,2]
[312196498,1705684287678,-1303.95,0.00023013,2]
[312196499,1705684287690,-658.2,0.00023013,2]
[312196500,1705684287701,-500.0,0.00023013,2]
[312196501,1705684287711,-500.0,0.00023013,2]
[312196502,1705684287722,-500.0,0.00023013,2]
[312196503,1705684287732,-500.0,0.00023013,2]
[312196504,1705684287743,-500.0,0.00023013,2]
[312196505,1705684287753,-500.0,0.00023013,2]
[312196506,1705684287772,-695.99,0.00023013,2]
[312196507,1705684287782,-8690.7,0.00023013,2]
[312196508,1705684287793,-6873.67,0.00023013,2]
[312196509,1705684287804,-500.0,0.00023013,2]
[312196510,1705684287814,-500.0,0.00023013,2]
[312196511,1705684287825,-500.0,0.00023013,2]
[312196512,1705684287835,-519.42,0.00023013,2]
[312196513,1705684287846,-1295.46,0.00023013,2]
[312196514,1705684287857,-1149.53,0.00023013,2]
[312196515,1705684287867,-500.0,0.00023013,2]
[312196516,1705684287878,-1617.17,0.00023013,2]
[312196517,1705684287888,-500.0,0.00023013,2]
[312196518,1705684287899,-500.0,0.00023013,2]
[312196519,1705684287910,-870.11,0.00023013,2]
[312196520,1705684287921,-500.0,0.00023013,2]
[312196521,1705684287931,-500.0,0.00023013,2]
[312196522,1705684287942,-500.0,0.00023013,2]
[312196523,1705684287953,-500.0,0.00023013,2]
[312196524,1705684287963,-753.21,0.00023013,2]
[312196525,1705684287974,-500.0,0.00023013,2]
[312196526,1705684287984,-500.0,0.00023013,2]
[312196527,1705684287995,-763.08,0.00023013,2]
[312196528,1705684288006,-982.23,0.00023013,2]
[312196529,1705684288023,-500.0,0.00023013,2]
[312196530,1705684288034,-1344.83,0.00023013,2]
[312196531,1705684288046,-582.99,0.00023013,2]
[312196532,1705684288058,-500.0,0.00023013,2]
[312196533,1705684288069,-569.27,0.00023013,2]
[312196534,1705684288082,-597.5,0.00023013,2]
[312196535,1705684288093,-512.26,0.00023013,2]
[312196536,1705684288106,-500.0,0.00023013,2]
[312196537,1705684288118,-500.0,0.00023013,2]
[312196538,1705684288129,-742.83,0.00023013,2]
[312196539,1705684288140,-500.0,0.00023013,2]
[312196540,1705684288152,-500.0,0.00023013,2]
[312196541,1705684288162,-500.0,0.00023013,2]
[312196542,1705684288174,-2112.76,0.00023013,2]
[312196543,1705684288185,-4987.06,0.00023013,2]
[312196544,1705684288197,-500.0,0.00023013,2]
[312196545,1705684288210,-1184.32,0.00023013,2]
[312196546,1705684288224,-500.0,0.00023013,2]
[312196547,1705684288235,-2960.59,0.00023013,2]
[312196548,1705684288246,-15338.55,0.00023013,2]
[312196549,1705684288259,-301.0,0.00023013,2]
[312196550,1705684288477,-500.0,0.00023013,2]
[312196551,1705684288490,-594.36,0.00023013,2]
[312196552,1705684288501,-500.0,0.00023013,2]
[312196553,1705684288521,-500.0,0.00023013,2]
[312196554,1705684288533,-500.0,0.00023013,2]
[312196555,1705684288544,-2307.01,0.00023013,2]
[312196556,1705684288555,-2166.93,0.00023013,2]
[312196557,1705684288568,-500.0,0.00023013,2]
[312196558,1705684288579,-1238.0,0.00023013,2]
[312196559,1705684288590,-582.28,0.00023013,2]
[312196560,1705684288602,-1682.88,0.00023013,2]
[312196561,1705684288615,-861.16,0.00023013,2]
[312196562,1705684288627,-970.11,0.00023013,2]
[312196563,1705684288638,-1309.07,0.00023013,2]
[312196564,1705684288650,-687.38,0.00023013,2]
[312196565,1705684288662,-500.0,0.00023013,2]
[312196566,1705684288673,-500.0,0.00023013,2]
[312196567,1705684288684,-500.0,0.00023013,2]
[312196568,1705684288695,-500.0,0.00023013,2]
[312196569,1705684288707,-966.15,0.00023013,2]
[312196570,1705684288719,-1452.73,0.00023013,2]
[312196571,1705684288731,-543.77,0.00023013,2]
[312196572,1705684288741,-506.24708716,0.00023013,2]
[312196573,1705684288753,-687.66,0.00023013,2]
[312196574,1705684288772,-789.87,0.00023013,2]
[312196575,1705684288783,-1600.24,0.00023013,2]
[312196576,1705684288794,-580.5,0.00023013,2]
[312196577,1705684288804,-724.98,0.00023013,2]
[312196578,1705684288816,-566.64,0.00023013,2]
[312196579,1705684288828,-500.0,0.00023013,2]
[312196580,1705684288840,-500.0,0.00023013,2]
[312196581,1705684288852,-500.0,0.00023013,2]
[312196582,1705684288864,-500.0,0.00023013,2]
[312196583,1705684288876,-2353.38,0.00023013,2]
[312196584,1705684288888,-1472.8,0.00023013,2]
[312196585,1705684288899,-500.0,0.00023013,2]
[312196586,1705684288909,-982.82,0.00023013,2]
[312196587,1705684288920,-1029.65,0.00023013,2]
[312196588,1705684288931,-500.0,0.00023013,2]
[312196589,1705684288943,-500.0,0.00023013,2]
[312196590,1705684288955,-1034.15,0.00023013,2]
[312196591,1705684288966,-500.0,0.00023013,2]
[312196592,1705684288978,-1105.06,0.00023013,2]
[312196593,1705684288990,-511.82,0.00023013,2]
[312196594,1705684289001,-2707.99,0.00023013,2]
[312196595,1705684289019,-1045.7,0.00023013,2]
[312196596,1705684289030,-1777.84,0.00023013,2]
[312196597,1705684289044,-221.16,0.00023013,2]
[312196598,1705684289055,-536.83,0.00023013,2]
[312196599,1705684289066,-10382.29,0.00023013,2]
[312196600,1705684289077,-1339.3,0.00023013,2]
[312196601,1705684289087,-500.0,0.00023013,2]
[312196602,1705684289099,-423.09,0.00023013,2]
[312196603,1705684289110,-907.28,0.00023013,2]
[312196604,1705684289121,-639.2,0.00023013,2]
[312196605,1705684289133,-500.0,0.00023013,2]
[312196606,1705684289143,-500.0,0.00023013,2]
[312196607,1705684289155,-500.65,0.00023013,2]
[312196608,1705684289166,-500.0,0.00023013,2]
[312196609,1705684289177,-1150.48,0.00023013,2]
[312196610,1705684289188,-3979.15,0.00023013,2]
[312196611,1705684289200,-1514.36,0.00023013,2]
[312196612,1705684289211,-524.59,0.00023013,2]
[312196613,1705684289225,-778.28,0.00023013,2]
[312196614,1705684289237,-500.0,0.00023013,2]
[312196615,1705684289248,-500.0,0.00023013,2]
[312196616,1705684289265,-5877.42,0.00023013,2]
[312196617,1705684289276,-848.6,0.00023013,2]
[312196618,1705684289287,-500.0,0.00023013,2]
[312196619,1705684289298,-963.32,0.00023013,2]
[312196620,1705684289309,-733.77,0.00023013,2]
[312196621,1705684289320,-635.87,0.00023013,2]
[312196622,1705684289332,-500.0,0.00023013,2]
[312196623,1705684289343,-2258.64,0.00023013,2]
[312196624,1705684289354,-689.61,0.00023013,2]
[312196625,1705684289366,-649.04,0.00023013,2]
[312196626,1705684289378,-3018.83,0.00023013,2]
[312196627,1705684289389,-500.0,0.00023013,2]
[312196628,1705684289400,-307.26,0.00023013,2]
[312196629,1705684289411,-906.51,0.00023013,2]
[312196630,1705684289421,-159.31,0.00023014,2]
[312196631,1705684289431,-500.0,0.00023024,2]
[312196632,1705684289442,-160.21,0.00023039,2]
[312196633,1705684289452,-150.0,0.00023042,2]
[312196634,1705684289462,-200.0,0.00023063,2]
[312196635,1705684289472,-150.0,0.00023069,2]
[312196636,1705684289774,-27012.46028621,0.0002307,2]
[312196637,1705684289797,-151.015,0.00023071,2]
[312196638,1705684289806,-150.185,0.00023071,2]
[312196639,1705684289817,-210.385,0.00023071,2]
[312196640,1705684289827,-294.0,0.00023071,2]
[312196641,1705684289837,-7812.9362896,0.00023112,2]
[312196642,1705684289846,-150.0,0.00023122,2]
[312196643,1705684289857,-500.0,0.00023132,2]
[312196644,1705684289867,-836.0,0.00023137,2]
[312196645,1705684289877,-946.0,0.00023137,2]
[312196646,1705684289887,-500.0,0.00023163,2]
[312196647,1705684289897,-150.0,0.00023164,2]
[312196648,1705684289907,-150.0,0.00023164,2]
[312196649,1705684289917,-150.0,0.00023164,2]
[312196650,1705684289929,-150.0,0.00023164,2]
[312196651,1705684289939,-500.25631957,0.0002319,2]
[312196652,1705684289949,-500.0,0.00023194,2]
[312196653,1705684289959,-500.0,0.00023225,2]
[312196654,1705684289969,-150.0,0.00023235,2]
[312196655,1705684289979,-800.0,0.00023237,2]
[312196656,1705684289988,-5062.68,0.00023245,2]
[312196657,1705684289998,-7812.9362896,0.00023256,2]
[312196658,1705684290011,-500.0,0.00023256,2]
[312196659,1705684290021,-200.0,0.00023256,2]
[312196660,1705684290030,-500.0,0.00023258,2]
[312196661,1705684290044,-150.0,0.00023259,2]
[312196662,1705684290056,-156.71,0.00023268,2]
[312196663,1705684290066,-902.55,0.00023279,2]
[312196664,1705684290077,-500.0,0.0002328,2]
[312196665,1705684290089,-155.0,0.00023287,2]
[312196666,1705684290102,-846.93144894,0.00023287,2]
[312196667,1705684290113,-846.93144894,0.00023287,2]
[312196668,1705684290123,-500.0,0.00023287,2]
[312196669,1705684290133,-500.0,0.00023287,2]
[312196670,1705684290143,-500.0,0.00023287,2]
[312196671,1705684290154,-500.0,0.00023287,2]
[312196672,1705684290164,-500.0,0.00023287,2]
[312196673,1705684290174,-335.88125194,0.00023287,2]
[312196674,1705684290186,-500.0,0.00023287,2]
[312196675,1705684290197,-500.0,0.00023287,2]
[312196676,1705684290207,-500.0,0.00023287,2]
[312196677,1705684290217,-542.14,0.00023287,2]
[312196678,1705684290229,-500.0,0.00023287,2]
[312196679,1705684290238,-500.0,0.00023287,2]
[312196680,1705684290247,-500.0,0.00023287,2]
[312196681,1705684290258,-500.0,0.00023287,2]
[312196682,1705684290269,-500.0,0.00023287,2]
[312196683,1705684290278,-500.0,0.00023287,2]
[312196684,1705684290288,-500.0,0.00023287,2]
[312196685,1705684290297,-542.59,0.00023287,2]
[312196686,1705684290306,-374.06,0.00023287,2]
[312196687,1705684290315,-500.0,0.00023287,2]
[312196688,1705684290325,-730.0,0.00023287,2]
[312196689,1705684290334,-500.0,0.00023287,2]
[312196690,1705684290344,-500.0,0.00023287,2]
[312196691,1705684290353,-500.0,0.00023287,2]
[312196692,1705684290365,-582.79,0.00023287,2]
[312196693,1705684290375,-528.39,0.00023287,2]
[312196694,1705684290384,-500.0,0.00023287,2]
[312196695,1705684290395,-542.09,0.00023287,2]
[312196696,1705684290405,-500.0,0.00023287,2]
[312196697,1705684290416,-244.92,0.00023287,2]
[312196698,1705684290425,-500.0,0.00023287,2]
[312196699,1705684290435,-500.0,0.00023287,2]
[312196700,1705684290444,-676.04,0.00023287,2]
[312196701,1705684290453,-500.0,0.00023287,2]
[312196702,1705684290464,-500.0,0.00023287,2]
[312196703,1705684290473,-500.0,0.00023287,2]
[312196704,1705684290482,-500.0,0.00023287,2]
[312196705,1705684290491,-808.53,0.00023287,2]
[312196706,1705684290502,-500.0,0.00023287,2]
[312196707,1705684290515,-500.0,0.00023287,2]
[312196708,1705684290524,-500.0,0.00023287,2]
[312196709,1705684290534,-544.1,0.00023287,2]
[312196710,1705684290546,-500.0,0.00023287,2]
[312196711,1705684290556,-500.0,0.00023287,2]
[312196712,1705684290565,-500.0,0.00023287,2]
[312196713,1705684290575,-513.9,0.00023287,2]
[312196714,1705684290584,-807.4,0.00023287,2]
[312196715,1705684290594,-500.0,0.00023287,2]
[312196716,1705684290603,-500.0,0.00023287,2]
[312196717,1705684290613,-500.0,0.00023287,2]
[312196718,1705684290622,-500.0,0.00023287,2]
[312196719,1705684290631,-500.0,0.00023287,2]
[312196720,1705684290640,-1752.26,0.00023287,2]
[312196721,1705684290650,-565.26,0.00023287,2]
[312196722,1705684290659,-500.0,0.00023287,2]
[312196723,1705684290669,-500.0,0.00023287,2]
[312196724,1705684290678,-500.0,0.00023287,2]
[312196725,1705684290687,-500.0,0.00023287,2]
[312196726,1705684290697,-500.0,0.00023287,2]
[312196727,1705684290706,-500.0,0.00023287,2]
[312196728,1705684290715,-500.0,0.00023287,2]
[312196729,1705684290724,-638.62,0.00023287,2]
[312196730,1705684290733,-500.0,0.00023287,2]
[312196731,1705684290743,-500.0,0.00023287,2]
[312196732,1705684290752,-500.0,0.00023287,2]
[312196733,1705684290765,-702.27,0.00023287,2]
[312196734,1705684290776,-546.25,0.00023287,2]
[312196735,1705684290786,-500.0,0.00023287,2]
[312196736,1705684290795,-500.0,0.00023287,2]
[312196737,1705684290805,-500.0,0.00023287,2]
[312196738,1705684290814,-500.0,0.00023287,2]
[312196739,1705684290824,-500.0,0.00023287,2]
[312196740,1705684290834,-500.0,0.00023287,2]
[312196741,1705684290844,-500.0,0.00023287,2]
[312196742,1705684290854,-500.0,0.00023287,2]
[312196743,1705684290864,-500.0,0.00023287,2]
[312196744,1705684290873,-500.0,0.00023287,2]
[312196745,1705684290882,-1045.91,0.00023287,2]
[312196746,1705684290892,-500.0,0.00023287,2]
[312196747,1705684290902,-615.78,0.00023287,2]
[312196748,1705684290912,-546.84,0.00023287,2]
[312196749,1705684290921,-884.67,0.00023287,2]
[312196750,1705684290931,-500.0,0.00023287,2]
[312196751,1705684290941,-679.98,0.00023287,2]
[312196752,1705684290951,-500.0,0.00023287,2]
[312196753,1705684290960,-500.0,0.00023287,2]
[312196754,1705684290971,-500.0,0.00023287,2]
[312196755,1705684290980,-500.0,0.00023287,2]
[312196756,1705684290990,-500.0,0.00023287,2]
[312196757,1705684291001,-500.0,0.00023287,2]
[312196758,1705684291013,-500.0,0.00023287,2]
[312196759,1705684291024,-500.0,0.00023287,2]
[312196760,1705684291035,-500.0,0.00023287,2]
[312196761,1705684291046,-602.03,0.00023287,2]
[312196762,1705684291056,-500.0,0.00023287,2]
[312196763,1705684291066,-1736.83,0.00023287,2]
[312196764,1705684291075,-329.5348862,0.00023287,2]
[312196765,1705684291085,-715.58,0.00023287,2]
[312196766,1705684291094,-500.0,0.00023287,2]
[312196767,1705684291104,-491.89,0.00023287,2]
[312196768,1705684291114,-582.03,0.00023287,2]
[312196769,1705684291124,-585.76,0.00023287,2]
[312196770,1705684291133,-648.18,0.00023287,2]
[312196771,1705684291143,-353.37634414,0.00023287,2]
[312196772,1705684291153,-581.09,0.00023287,2]
[312196773,1705684291162,-500.0,0.00023287,2]
[312196774,1705684291172,-500.0,0.00023287,2]
[312196775,1705684291182,-588.13,0.00023287,2]
[312196776,1705684291192,-800.73,0.00023287,2]
[312196777,1705684291201,-524.92,0.00023287,2]
[312196778,1705684291211,-500.0,0.00023287,2]
[312196779,1705684291222,-500.0,0.00023287,2]
[312196780,1705684291232,-408.23416281,0.00023287,2]
[312196781,1705684291241,-729.35,0.00023287,2]
[312196782,1705684291251,-798.17,0.00023287,2]
[312196783,1705684291264,-510.07,0.00023287,2]
[312196784,1705684291274,-500.0,0.00023287,2]
[312196785,1705684291284,-500.0,0.00023287,2]
[312196786,1705684291293,-572.67,0.00023287,2]
[312196787,1705684291304,-594.92,0.00023287,2]
[312196788,1705684291314,-789.92,0.00023287,2]
[312196789,1705684291324,-500.0,0.00023287,2]
[312196790,1705684291334,-506.875,0.00023287,2]
[312196791,1705684291344,-500.0,0.00023287,2]
[312196792,1705684291354,-500.0,0.00023287,2]
[312196793,1705684291364,-500.0,0.00023287,2]
[312196794,1705684291374,-500.0,0.00023287,2]
[312196795,1705684291384,-500.0,0.00023287,2]
[312196796,1705684291393,-500.0,0.00023287,2]
[312196797,1705684291403,-500.0,0.00023287,2]
[312196798,1705684291413,-547.54,0.00023287,2]
[312196799,1705684291423,-500.0,0.00023287,2]
[312196800,1705684291433,-500.0,0.00023287,2]
[312196801,1705684291442,-500.0,0.00023287,2]
[312196802,1705684291452,-500.0,0.00023287,2]
[312196803,1705684291462,-500.0,0.00023287,2]
[312196804,1705684291471,-607.27108497,0.00023287,2]
[312196805,1705684291481,-836.55,0.00023287,2]